[Event "Early-Titled-Tuesday-Blitz-March-19-2024"]
[Site "Chess.com"]
[Date "2024.03.19"]
[Round "2"]
[White "wannabe2700"]
[Black "DanielDardha2005"]
[Result "1-0"]
[WhiteElo "2627"]
[BlackElo "2859"]
[TimeControl "180+1"]
[EndTime "8:17:58 PDT"]
[Termination "wannabe2700 won by checkmate"]

1. b3 {[%clk 0:03:00.9]} 1... d5 {[%clk 0:02:56.5]} 2. Bb2 {[%clk 0:03:01.8]}
2... Bf5 {[%clk 0:02:56.5]} 3. Nf3 {[%clk 0:03:01.3]} 3... h6 {[%clk 0:02:56.2]}
4. g3 {[%clk 0:03:01.7]} 4... Nf6 {[%clk 0:02:56.2]} 5. Bg2 {[%clk 0:03:02.3]}
5... e6 {[%clk 0:02:56.5]} 6. O-O {[%clk 0:03:02.9]} 6... a5 {[%clk 0:02:56.6]}
7. d3 {[%clk 0:02:57.9]} 7... Be7 {[%clk 0:02:55.4]} 8. Nbd2 {[%clk 0:02:58.3]}
8... O-O {[%clk 0:02:55.5]} 9. e4 {[%clk 0:02:57.6]} 9... Bh7 {[%clk 0:02:55.4]}
10. exd5 {[%clk 0:02:39.9]} 10... Nxd5 {[%clk 0:02:52]} 11. Ne5 {[%clk
0:02:29.6]} 11... Nd7 {[%clk 0:02:48.5]} 12. a3 {[%clk 0:02:09.5]} 12... Nxe5
{[%clk 0:02:34.9]} 13. Bxe5 {[%clk 0:02:09.1]} 13... Bf6 {[%clk 0:02:35.6]} 14.
Re1 {[%clk 0:01:43]} 14... Nc3 {[%clk 0:02:31]} 15. Qg4 {[%clk 0:01:38.1]} 15...
c6 {[%clk 0:02:19.5]} 16. a4 {[%clk 0:01:21.8]} 16... Nd5 {[%clk 0:02:13.7]} 17.
Nc4 {[%clk 0:01:19.5]} 17... Nb4 {[%clk 0:02:12]} 18. Re2 {[%clk 0:01:17.6]}
18... Bxe5 {[%clk 0:02:08.4]} 19. Nxe5 {[%clk 0:01:17.5]} 19... Bf5 {[%clk
0:02:05.2]} 20. Qc4 {[%clk 0:01:16.1]} 20... Qd6 {[%clk 0:02:01.9]} 21. Rae1
{[%clk 0:01:13.5]} 21... Rad8 {[%clk 0:01:57.3]} 22. h4 {[%clk 0:01:05.3]} 22...
Nd5 {[%clk 0:01:48.1]} 23. g4 {[%clk 0:01:03]} 23... Bh7 {[%clk 0:01:47.4]} 24.
g5 {[%clk 0:01:02.8]} 24... hxg5 {[%clk 0:01:36.4]} 25. hxg5 {[%clk 0:01:03.7]}
25... Bf5 {[%clk 0:01:31.2]} 26. Qh4 {[%clk 0:00:54.6]} 26... f6 {[%clk
0:01:02.4]} 27. g6 {[%clk 0:00:52.9]} 27... Bxg6 {[%clk 0:00:47.4]} 28. Nxg6
{[%clk 0:00:53.8]} 28... Rfe8 {[%clk 0:00:48.3]} 29. Re3 {[%clk 0:00:44.3]}
29... Nxe3 {[%clk 0:00:46.8]} 30. Rxe3 {[%clk 0:00:45.2]} 30... Qd4 {[%clk
0:00:40.9]} 31. Qh8+ {[%clk 0:00:45]} 31... Kf7 {[%clk 0:00:40.6]} 32. Qh5
{[%clk 0:00:45.9]} 32... Qa1+ {[%clk 0:00:29.4]} 33. Kh2 {[%clk 0:00:43.8]}
33... b5 {[%clk 0:00:14.7]} 34. Bxc6 {[%clk 0:00:40.2]} 34... Qf1 {[%clk
0:00:11.8]} 35. Rf3 {[%clk 0:00:31.7]} 35... Rg8 {[%clk 0:00:08.1]} 36. axb5
{[%clk 0:00:28.8]} 36... f5 {[%clk 0:00:08.5]} 37. Rxf5+ {[%clk 0:00:17.3]}
37... exf5 {[%clk 0:00:09.4]} 38. Qxf5# {[%clk 0:00:17.2]} 1-0

[Event "Early-Titled-Tuesday-Blitz-March-19-2024"]
[Site "Chess.com"]
[Date "2024.03.19"]
[Round "2"]
[White "LornerAcosta"]
[Black "Adar_07"]
[Result "0-1"]
[WhiteElo "2598"]
[BlackElo "2845"]
[TimeControl "180+1"]
[EndTime "8:17:59 PDT"]
[Termination "Adar_07 won on time"]

1. Nf3 {[%clk 0:02:59.5]} 1... Nf6 {[%clk 0:02:58.9]} 2. d4 {[%clk 0:02:56.2]}
2... g6 {[%clk 0:02:59]} 3. c3 {[%clk 0:02:56]} 3... Bg7 {[%clk 0:02:59.4]} 4.
Bf4 {[%clk 0:02:56.5]} 4... O-O {[%clk 0:02:59.9]} 5. Nbd2 {[%clk 0:02:56.9]}
5... d6 {[%clk 0:03:00.5]} 6. e4 {[%clk 0:02:56.1]} 6... Nbd7 {[%clk 0:02:59.6]}
7. Be2 {[%clk 0:02:53.6]} 7... Re8 {[%clk 0:02:54.4]} 8. h3 {[%clk 0:02:48.5]}
8... b6 {[%clk 0:02:49.9]} 9. e5 {[%clk 0:02:28.7]} 9... dxe5 {[%clk 0:02:48.9]}
10. dxe5 {[%clk 0:02:28.5]} 10... Nd5 {[%clk 0:02:49.5]} 11. Bg3 {[%clk
0:02:27.1]} 11... e6 {[%clk 0:02:47.3]} 12. O-O {[%clk 0:02:24]} 12... Bb7
{[%clk 0:02:46.8]} 13. Qc2 {[%clk 0:02:23.3]} 13... c5 {[%clk 0:02:38.4]} 14.
Ne4 {[%clk 0:02:12.5]} 14... Qc7 {[%clk 0:02:35.5]} 15. Nd6 {[%clk 0:01:56.7]}
15... Red8 {[%clk 0:02:35.1]} 16. a4 {[%clk 0:01:20.3]} 16... a6 {[%clk
0:02:28]} 17. Rfe1 {[%clk 0:01:06.9]} 17... Bc6 {[%clk 0:02:25.7]} 18. h4 {[%clk
0:01:01.3]} 18... Ne7 {[%clk 0:02:09.3]} 19. h5 {[%clk 0:00:50.1]} 19... Nf5
{[%clk 0:02:08]} 20. hxg6 {[%clk 0:00:48.6]} 20... hxg6 {[%clk 0:02:04.3]} 21.
Nxf5 {[%clk 0:00:46.8]} 21... gxf5 {[%clk 0:02:04.4]} 22. Qc1 {[%clk 0:00:44.8]}
22... Nf8 {[%clk 0:01:52.5]} 23. Qg5 {[%clk 0:00:42.2]} 23... Ng6 {[%clk
0:01:52.6]} 24. Qh5 {[%clk 0:00:42.2]} 24... Bxf3 {[%clk 0:01:48.7]} 25. Bxf3
{[%clk 0:00:40.8]} 25... Rab8 {[%clk 0:01:48.8]} 26. Qg5 {[%clk 0:00:36.1]}
26... Rd3 {[%clk 0:01:34.2]} 27. Bh5 {[%clk 0:00:35.2]} 27... Qd8 {[%clk
0:01:31.9]} 28. Qc1 {[%clk 0:00:30.7]} 28... Rb7 {[%clk 0:01:07.6]} 29. Be2
{[%clk 0:00:29]} 29... Rd2 {[%clk 0:01:05.6]} 30. Bxa6 {[%clk 0:00:28.5]} 30...
Rbd7 {[%clk 0:01:05.1]} 31. Bb5 {[%clk 0:00:28.7]} 31... R7d5 {[%clk 0:01:04.6]}
32. Bc4 {[%clk 0:00:27]} 32... Rd7 {[%clk 0:01:01.3]} 33. Bb5 {[%clk 0:00:26.5]}
33... f4 {[%clk 0:01:01.1]} 34. Bh2 {[%clk 0:00:22]} 34... R7d5 {[%clk 0:00:59]}
35. Bc4 {[%clk 0:00:21.7]} 35... Rxe5 {[%clk 0:00:59.4]} 36. Rxe5 {[%clk
0:00:12.7]} 36... Nxe5 {[%clk 0:00:59.5]} 37. Bf1 {[%clk 0:00:06.7]} 37... Bh6
{[%clk 0:00:55.7]} 38. Qe1 {[%clk 0:00:05.9]} 38... Qd5 {[%clk 0:00:54.4]} 39.
a5 {[%clk 0:00:05.6]} 39... bxa5 {[%clk 0:00:52.1]} 40. Ra4 {[%clk 0:00:05.4]}
40... Rd1 {[%clk 0:00:51.9]} 41. Qe2 {[%clk 0:00:05.1]} 41... c4 {[%clk
0:00:46.1]} 42. f3 {[%clk 0:00:03.5]} 42... Nd3 {[%clk 0:00:41.1]} 43. Kh1
{[%clk 0:00:01.2]} 43... Re1 {[%clk 0:00:34.9]} 0-1

[Event "Early-Titled-Tuesday-Blitz-March-19-2024"]
[Site "Chess.com"]
[Date "2024.03.19"]
[Round "2"]
[White "ulises2013"]
[Black "Jospem"]
[Result "0-1"]
[WhiteElo "2700"]
[BlackElo "3053"]
[TimeControl "180+1"]
[EndTime "8:18:02 PDT"]
[Termination "Jospem won by checkmate"]

1. e4 {[%clk 0:03:00.9]} 1... e5 {[%clk 0:02:59.4]} 2. Nf3 {[%clk 0:03:00.9]}
2... Nc6 {[%clk 0:03:00.1]} 3. Bb5 {[%clk 0:03:01.2]} 3... a6 {[%clk 0:03:00.1]}
4. Bxc6 {[%clk 0:02:51.4]} 4... dxc6 {[%clk 0:03:01]} 5. O-O {[%clk 0:02:52]}
5... f6 {[%clk 0:02:57.1]} 6. d4 {[%clk 0:02:51.3]} 6... exd4 {[%clk 0:02:56.5]}
7. Nxd4 {[%clk 0:02:52.2]} 7... Bd6 {[%clk 0:02:55.9]} 8. Nc3 {[%clk 0:02:49.8]}
8... Ne7 {[%clk 0:02:53.7]} 9. Be3 {[%clk 0:02:48.4]} 9... Ng6 {[%clk
0:02:47.5]} 10. f4 {[%clk 0:02:48.1]} 10... O-O {[%clk 0:02:46.5]} 11. Qd2
{[%clk 0:02:48.2]} 11... Qe7 {[%clk 0:02:29.1]} 12. Rae1 {[%clk 0:02:41.5]}
12... Bd7 {[%clk 0:02:29.3]} 13. Qf2 {[%clk 0:02:28.3]} 13... Rae8 {[%clk
0:02:28]} 14. h3 {[%clk 0:02:21.2]} 14... Qf7 {[%clk 0:02:23.9]} 15. a3 {[%clk
0:02:19]} 15... b6 {[%clk 0:02:16.1]} 16. g4 {[%clk 0:02:07.8]} 16... Ne7 {[%clk
0:02:09.4]} 17. Nf5 {[%clk 0:02:05.4]} 17... Nxf5 {[%clk 0:02:09.3]} 18. exf5
{[%clk 0:02:05.9]} 18... c5 {[%clk 0:02:07.7]} 19. Qf3 {[%clk 0:02:00.8]} 19...
Kh8 {[%clk 0:02:02.7]} 20. Bf2 {[%clk 0:02:00.4]} 20... Qc4 {[%clk 0:01:59.5]}
21. Re4 {[%clk 0:01:47.8]} 21... Bc6 {[%clk 0:01:46.7]} 22. Rxc4 {[%clk
0:01:44.7]} 22... Bxf3 {[%clk 0:01:46.8]} 23. a4 {[%clk 0:01:21.3]} 23... h5
{[%clk 0:01:40.7]} 24. gxh5 {[%clk 0:01:12.1]} 24... Kh7 {[%clk 0:01:39.3]} 25.
Kh2 {[%clk 0:01:09.5]} 25... Bc6 {[%clk 0:01:30.2]} 26. Kg3 {[%clk 0:01:04.1]}
26... b5 {[%clk 0:01:20.1]} 27. axb5 {[%clk 0:01:04.1]} 27... axb5 {[%clk
0:01:21]} 28. Rxc5 {[%clk 0:01:04.7]} 28... Bxc5 {[%clk 0:01:21.7]} 29. Bxc5
{[%clk 0:01:05.3]} 29... Rf7 {[%clk 0:01:22.4]} 30. Ra1 {[%clk 0:01:02.3]} 30...
Rd7 {[%clk 0:01:17.9]} 31. Ra6 {[%clk 0:00:59.6]} 31... Be4 {[%clk 0:01:01.1]}
32. Nxb5 {[%clk 0:00:54]} 32... Bxc2 {[%clk 0:00:45.4]} 33. Nd4 {[%clk 0:00:54]}
33... Rd5 {[%clk 0:00:40.8]} 34. Rc6 {[%clk 0:00:38.1]} 34... Bxf5 {[%clk
0:00:38.6]} 35. Rxc7 {[%clk 0:00:38.3]} 35... Re4 {[%clk 0:00:32.4]} 36. Nf3
{[%clk 0:00:18.2]} 36... Re8 {[%clk 0:00:26.8]} 37. Nd4 {[%clk 0:00:15.9]} 37...
Red8 {[%clk 0:00:23.3]} 38. Nf3 {[%clk 0:00:14]} 38... Rd3 {[%clk 0:00:22.8]}
39. Kf2 {[%clk 0:00:14]} 39... Be4 {[%clk 0:00:20.7]} 40. Nh4 {[%clk 0:00:12.8]}
40... Rxh3 {[%clk 0:00:19.7]} 41. Be7 {[%clk 0:00:10.5]} 41... Rd2+ {[%clk
0:00:18.7]} 42. Kg1 {[%clk 0:00:10.5]} 42... Rh1# {[%clk 0:00:18.2]} 0-1

[Event "Early-Titled-Tuesday-Blitz-March-19-2024"]
[Site "Chess.com"]
[Date "2024.03.19"]
[Round "2"]
[White "Elnaz_Kaliakhmet"]
[Black "Kiborg95"]
[Result "1-0"]
[WhiteElo "2516"]
[BlackElo "2780"]
[TimeControl "180+1"]
[EndTime "8:18:02 PDT"]
[Termination "Elnaz_Kaliakhmet won by checkmate"]

1. d4 {[%clk 0:03:00.9]} 1... d6 {[%clk 0:02:59.3]} 2. c4 {[%clk 0:02:58.1]}
2... e5 {[%clk 0:02:59.1]} 3. Nc3 {[%clk 0:02:58]} 3... exd4 {[%clk 0:02:59.2]}
4. Qxd4 {[%clk 0:02:58.6]} 4... Nf6 {[%clk 0:02:59.9]} 5. Qd2 {[%clk 0:02:58.6]}
5... Be6 {[%clk 0:02:56.8]} 6. b3 {[%clk 0:02:57.7]} 6... d5 {[%clk 0:02:57.4]}
7. cxd5 {[%clk 0:02:50.2]} 7... Nxd5 {[%clk 0:02:58.3]} 8. Nxd5 {[%clk
0:02:44.7]} 8... Qxd5 {[%clk 0:02:57.6]} 9. Nf3 {[%clk 0:02:38.5]} 9... Nc6
{[%clk 0:02:55.9]} 10. Qxd5 {[%clk 0:02:21.7]} 10... Bxd5 {[%clk 0:02:56.8]} 11.
e3 {[%clk 0:02:19.8]} 11... O-O-O {[%clk 0:02:49.5]} 12. Bd2 {[%clk 0:02:18.7]}
12... Nb4 {[%clk 0:02:45.8]} 13. Nd4 {[%clk 0:02:08.6]} 13... Be4 {[%clk
0:02:29.6]} 14. a3 {[%clk 0:02:00]} 14... Nd3+ {[%clk 0:01:23.5]} 15. Bxd3
{[%clk 0:01:58.5]} 15... Bxd3 {[%clk 0:01:24.4]} 16. f3 {[%clk 0:01:52.9]} 16...
c5 {[%clk 0:01:20.8]} 17. Ne2 {[%clk 0:01:50.1]} 17... Be7 {[%clk 0:01:19.4]}
18. Nf4 {[%clk 0:01:47.2]} 18... Bc2 {[%clk 0:01:00.5]} 19. b4 {[%clk
0:01:33.4]} 19... c4 {[%clk 0:01:00.8]} 20. Rc1 {[%clk 0:01:29.6]} 20... Bb3
{[%clk 0:00:59.2]} 21. Bc3 {[%clk 0:01:29.5]} 21... Rhe8 {[%clk 0:00:52.2]} 22.
Kf2 {[%clk 0:01:19.3]} 22... g6 {[%clk 0:00:47]} 23. Ne2 {[%clk 0:01:13]} 23...
Bg5 {[%clk 0:00:37.4]} 24. f4 {[%clk 0:01:12.7]} 24... Be7 {[%clk 0:00:30.4]}
25. Nd4 {[%clk 0:01:10.8]} 25... Ba4 {[%clk 0:00:31.1]} 26. b5 {[%clk
0:00:42.6]} 26... Bc5 {[%clk 0:00:25.1]} 27. Bb4 {[%clk 0:00:40.3]} 27... Bxd4
{[%clk 0:00:14.5]} 28. Rxc4+ {[%clk 0:00:39.1]} 28... Kb8 {[%clk 0:00:15.2]} 29.
Rxd4 {[%clk 0:00:38.4]} 29... Bxb5 {[%clk 0:00:13]} 30. Rhd1 {[%clk 0:00:36.7]}
30... Rc8 {[%clk 0:00:13.5]} 31. a4 {[%clk 0:00:34.6]} 31... Bc6 {[%clk
0:00:12.1]} 32. a5 {[%clk 0:00:33.4]} 32... a6 {[%clk 0:00:10.9]} 33. Bd6+
{[%clk 0:00:33.1]} 33... Ka8 {[%clk 0:00:11.1]} 34. Be5 {[%clk 0:00:33.8]} 34...
Bb5 {[%clk 0:00:08.6]} 35. g4 {[%clk 0:00:30.8]} 35... Ka7 {[%clk 0:00:09]} 36.
Kg3 {[%clk 0:00:30.3]} 36... b6 {[%clk 0:00:09.4]} 37. Rd7+ {[%clk 0:00:23.2]}
37... Bxd7 {[%clk 0:00:04.1]} 38. Rxd7+ {[%clk 0:00:24.1]} 38... Ka8 {[%clk
0:00:04.2]} 39. axb6 {[%clk 0:00:24.7]} 39... Rb8 {[%clk 0:00:04.7]} 40. Ra7#
{[%clk 0:00:24.4]} 1-0

[Event "Early-Titled-Tuesday-Blitz-March-19-2024"]
[Site "Chess.com"]
[Date "2024.03.19"]
[Round "2"]
[White "geminithegreat"]
[Black "ragnaroek66"]
[Result "0-1"]
[WhiteElo "2228"]
[BlackElo "2513"]
[TimeControl "180+1"]
[EndTime "8:18:03 PDT"]
[Termination "ragnaroek66 won by resignation"]

1. Nf3 {[%clk 0:03:00.9]} 1... d5 {[%clk 0:02:58.8]} 2. g3 {[%clk 0:03:00.9]}
2... Nd7 {[%clk 0:02:58.7]} 3. Bg2 {[%clk 0:03:01.3]} 3... e5 {[%clk 0:02:59]}
4. d3 {[%clk 0:03:01.6]} 4... Ngf6 {[%clk 0:02:59.7]} 5. O-O {[%clk 0:03:01.9]}
5... Bd6 {[%clk 0:03:00.4]} 6. c4 {[%clk 0:03:02]} 6... c6 {[%clk 0:03:00.5]} 7.
b3 {[%clk 0:03:02.1]} 7... O-O {[%clk 0:03:00.6]} 8. Bb2 {[%clk 0:03:02.8]} 8...
Re8 {[%clk 0:03:01.1]} 9. Nc3 {[%clk 0:03:00.3]} 9... h6 {[%clk 0:02:42.9]} 10.
e4 {[%clk 0:03:00.2]} 10... d4 {[%clk 0:02:36.4]} 11. Ne2 {[%clk 0:02:57.5]}
11... a5 {[%clk 0:02:35.4]} 12. a3 {[%clk 0:02:56.6]} 12... Nf8 {[%clk
0:02:31.2]} 13. Ne1 {[%clk 0:02:52.2]} 13... Ng6 {[%clk 0:02:25.6]} 14. Qd2
{[%clk 0:02:49.1]} 14... Qb6 {[%clk 0:02:20.8]} 15. f4 {[%clk 0:02:33.2]} 15...
Qxb3 {[%clk 0:02:11.7]} 16. fxe5 {[%clk 0:02:28.3]} 16... Bxe5 {[%clk
0:02:09.1]} 17. Bxd4 {[%clk 0:02:24.5]} 17... Bxd4+ {[%clk 0:02:01.6]} 18. Nxd4
{[%clk 0:02:25.4]} 18... Qb6 {[%clk 0:02:01.6]} 19. Nc2 {[%clk 0:02:06.3]} 19...
Rd8 {[%clk 0:01:58.3]} 20. Rab1 {[%clk 0:01:56.7]} 20... Qc5 {[%clk 0:01:58.2]}
21. Qf2 {[%clk 0:01:45.7]} 21... Kh7 {[%clk 0:01:43.5]} 22. h3 {[%clk
0:01:41.9]} 22... Rb8 {[%clk 0:01:37.1]} 23. Nb3 {[%clk 0:01:16.1]} 23... Qxf2+
{[%clk 0:01:34.3]} 24. Rxf2 {[%clk 0:01:17]} 24... Rxd3 {[%clk 0:01:34.9]} 25.
Nxa5 {[%clk 0:01:17.4]} 25... Rxg3 {[%clk 0:01:27.2]} 26. Nxc6 {[%clk
0:01:11.8]} 26... Ra8 {[%clk 0:01:27.2]} 27. Kh2 {[%clk 0:01:07.3]} 27... Rxg2+
{[%clk 0:01:23.9]} 28. Kxg2 {[%clk 0:01:00.3]} 28... bxc6 {[%clk 0:01:24.8]} 29.
Rb6 {[%clk 0:00:59.8]} 29... Ne5 {[%clk 0:01:13.3]} 30. Re2 {[%clk 0:00:49.2]}
30... Be6 {[%clk 0:01:08.1]} 31. Nd4 {[%clk 0:00:39.7]} 31... Bxc4 {[%clk
0:01:07.8]} 32. Re1 {[%clk 0:00:39.8]} 32... Bd3 {[%clk 0:01:03.4]} 33. Nf3
{[%clk 0:00:20]} 33... Nxf3 {[%clk 0:00:51.8]} 34. Kxf3 {[%clk 0:00:20.9]} 34...
Rxa3 {[%clk 0:00:52.5]} 35. Re3 {[%clk 0:00:20.4]} 35... Bxe4+ {[%clk
0:00:52.5]} 36. Kf4 {[%clk 0:00:19]} 36... g5+ {[%clk 0:00:49.6]} 37. Ke5 {[%clk
0:00:19.4]} 37... Rxe3 {[%clk 0:00:49.5]} 38. Kxf6 {[%clk 0:00:20.1]} 38... Rf3+
{[%clk 0:00:48.3]} 39. Ke5 {[%clk 0:00:20.2]} 39... Bd5 {[%clk 0:00:48.4]} 40.
Rb7 {[%clk 0:00:16.4]} 40... Kg6 {[%clk 0:00:47.3]} 41. Rc7 {[%clk 0:00:12.3]}
41... f6+ {[%clk 0:00:47.4]} 42. Kd4 {[%clk 0:00:12.1]} 42... Rxh3 {[%clk
0:00:46.2]} 43. Re7 {[%clk 0:00:09.3]} 43... Rh4+ {[%clk 0:00:46.3]} 44. Kc5
{[%clk 0:00:06.9]} 44... Rc4+ {[%clk 0:00:46]} 45. Kd6 {[%clk 0:00:06.7]} 45...
Re4 {[%clk 0:00:46.8]} 0-1

[Event "Early-Titled-Tuesday-Blitz-March-19-2024"]
[Site "Chess.com"]
[Date "2024.03.19"]
[Round "2"]
[White "LeRoidesChampions"]
[Black "tptagain"]
[Result "1-0"]
[WhiteElo "2671"]
[BlackElo "2946"]
[TimeControl "180+1"]
[EndTime "8:18:04 PDT"]
[Termination "LeRoidesChampions won on time"]

1. e4 {[%clk 0:03:00.9]} 1... c6 {[%clk 0:02:59.6]} 2. d4 {[%clk 0:02:58.1]}
2... d5 {[%clk 0:03:00]} 3. e5 {[%clk 0:02:57.8]} 3... Bf5 {[%clk 0:02:59.7]} 4.
h4 {[%clk 0:02:58.4]} 4... h6 {[%clk 0:02:59.2]} 5. Bd3 {[%clk 0:02:56.4]} 5...
Bxd3 {[%clk 0:02:58.5]} 6. Qxd3 {[%clk 0:02:57.3]} 6... e6 {[%clk 0:02:59]} 7.
h5 {[%clk 0:02:54.6]} 7... c5 {[%clk 0:02:58.7]} 8. c3 {[%clk 0:02:54.2]} 8...
Nc6 {[%clk 0:02:57.8]} 9. Ne2 {[%clk 0:02:54.5]} 9... Nge7 {[%clk 0:02:50]} 10.
a3 {[%clk 0:02:54.4]} 10... a5 {[%clk 0:02:34.2]} 11. f4 {[%clk 0:02:54.2]}
11... a4 {[%clk 0:02:22.1]} 12. Nd2 {[%clk 0:02:54.4]} 12... Qb6 {[%clk
0:02:06.2]} 13. Nf3 {[%clk 0:02:54.4]} 13... cxd4 {[%clk 0:02:03]} 14. Nexd4
{[%clk 0:02:52]} 14... Nxd4 {[%clk 0:02:03.3]} 15. Nxd4 {[%clk 0:02:25.2]} 15...
Nc6 {[%clk 0:02:02]} 16. O-O {[%clk 0:02:17.8]} 16... Bc5 {[%clk 0:01:53.9]} 17.
Be3 {[%clk 0:02:15.1]} 17... O-O {[%clk 0:01:49.8]} 18. Rf2 {[%clk 0:02:09.3]}
18... f6 {[%clk 0:01:38.8]} 19. Re1 {[%clk 0:01:16.5]} 19... Bxd4 {[%clk
0:01:31.5]} 20. Bxd4 {[%clk 0:01:14.8]} 20... Nxd4 {[%clk 0:01:31]} 21. cxd4
{[%clk 0:01:14.9]} 21... Rac8 {[%clk 0:01:21.2]} 22. f5 {[%clk 0:01:02.8]} 22...
fxe5 {[%clk 0:01:02]} 23. Rxe5 {[%clk 0:00:59.4]} 23... exf5 {[%clk 0:00:59.7]}
24. Rexf5 {[%clk 0:00:56.4]} 24... Rc1+ {[%clk 0:00:45.2]} 25. Kh2 {[%clk
0:00:51.9]} 25... Qd6+ {[%clk 0:00:44.8]} 26. g3 {[%clk 0:00:50.9]} 26... Re8
{[%clk 0:00:27.4]} 27. Qf3 {[%clk 0:00:50.6]} 27... Qe6 {[%clk 0:00:16.9]} 28.
Qxd5 {[%clk 0:00:48.9]} 28... Qxd5 {[%clk 0:00:15.5]} 29. Rxd5 {[%clk
0:00:49.8]} 29... Rc7 {[%clk 0:00:07.9]} 30. Ra5 {[%clk 0:00:47.9]} 30... Rd8
{[%clk 0:00:05]} 31. Rxa4 {[%clk 0:00:48]} 31... Rd5 {[%clk 0:00:05.3]} 32. g4
{[%clk 0:00:46.2]} 32... g6 {[%clk 0:00:04]} 33. hxg6 {[%clk 0:00:45.6]} 33...
Kg7 {[%clk 0:00:04.7]} 34. Rf7+ {[%clk 0:00:41.9]} 34... Rxf7 {[%clk 0:00:05]}
35. gxf7 {[%clk 0:00:42.8]} 35... Kxf7 {[%clk 0:00:05.4]} 36. Rb4 {[%clk
0:00:43.5]} 36... b5 {[%clk 0:00:05.5]} 37. a4 {[%clk 0:00:43.2]} 37... bxa4
{[%clk 0:00:05.2]} 38. Rxa4 {[%clk 0:00:44.1]} 38... Rb5 {[%clk 0:00:04.5]} 39.
Kg3 {[%clk 0:00:29.4]} 39... Rxb2 {[%clk 0:00:04.5]} 40. Kf4 {[%clk 0:00:30.1]}
40... Rd2 {[%clk 0:00:01.8]} 41. Ke5 {[%clk 0:00:29.1]} 41... Re2+ {[%clk
0:00:01.2]} 42. Kd6 {[%clk 0:00:29.6]} 1-0

[Event "Early-Titled-Tuesday-Blitz-March-19-2024"]
[Site "Chess.com"]
[Date "2024.03.19"]
[Round "2"]
[White "Likvidator228"]
[Black "baki83"]
[Result "0-1"]
[WhiteElo "2601"]
[BlackElo "2847"]
[TimeControl "180+1"]
[EndTime "8:18:05 PDT"]
[Termination "baki83 won by resignation"]

1. d4 {[%clk 0:03:00.9]} 1... d5 {[%clk 0:02:58.4]} 2. Nf3 {[%clk 0:03:00.7]}
2... e6 {[%clk 0:02:58.8]} 3. Bf4 {[%clk 0:03:00.9]} 3... Bd6 {[%clk 0:02:58.8]}
4. Bg3 {[%clk 0:03:00.7]} 4... Ne7 {[%clk 0:02:58.5]} 5. e3 {[%clk 0:03:01]}
5... b6 {[%clk 0:02:58.7]} 6. c4 {[%clk 0:03:00.3]} 6... Bb7 {[%clk 0:02:58]} 7.
Nc3 {[%clk 0:03:00.2]} 7... Nf5 {[%clk 0:02:56.9]} 8. Bxd6 {[%clk 0:03:00]} 8...
Nxd6 {[%clk 0:02:54.4]} 9. cxd5 {[%clk 0:03:00.3]} 9... exd5 {[%clk 0:02:54.7]}
10. Bd3 {[%clk 0:03:00.6]} 10... Nd7 {[%clk 0:02:54.5]} 11. Rc1 {[%clk
0:02:59.2]} 11... O-O {[%clk 0:02:52.2]} 12. O-O {[%clk 0:02:56.8]} 12... Nf6
{[%clk 0:02:47.3]} 13. Ne5 {[%clk 0:02:56.3]} 13... Nfe4 {[%clk 0:02:44.1]} 14.
Nxe4 {[%clk 0:02:49.2]} 14... dxe4 {[%clk 0:02:44.4]} 15. Be2 {[%clk 0:02:49]}
15... Bd5 {[%clk 0:02:42]} 16. Nc4 {[%clk 0:02:46.7]} 16... Nf5 {[%clk
0:02:30.5]} 17. a3 {[%clk 0:02:43.3]} 17... Nh4 {[%clk 0:02:11.7]} 18. Kh1
{[%clk 0:02:40.5]} 18... Qg5 {[%clk 0:02:00.7]} 19. Rg1 {[%clk 0:02:39.6]} 19...
Rae8 {[%clk 0:01:46.4]} 20. Ne5 {[%clk 0:02:28.1]} 20... Re7 {[%clk 0:01:36.3]}
21. g3 {[%clk 0:02:23.2]} 21... Ng6 {[%clk 0:01:24.6]} 22. Nc6 {[%clk
0:02:02.6]} 22... Rd7 {[%clk 0:01:15.6]} 23. Nxa7 {[%clk 0:01:55.5]} 23... c5
{[%clk 0:01:01.7]} 24. Nb5 {[%clk 0:01:52.4]} 24... Ba8 {[%clk 0:01:01.7]} 25.
Qb3 {[%clk 0:01:34.9]} 25... Rfd8 {[%clk 0:00:47.7]} 26. dxc5 {[%clk 0:01:14.6]}
26... bxc5 {[%clk 0:00:47.6]} 27. Rcd1 {[%clk 0:01:14.8]} 27... Rd3 {[%clk
0:00:46.8]} 28. Qc2 {[%clk 0:01:07.4]} 28... Ne5 {[%clk 0:00:45.9]} 29. Qxc5
{[%clk 0:00:57.5]} 29... Qf5 {[%clk 0:00:25.8]} 30. Nd4 {[%clk 0:00:44.2]} 30...
R8xd4 {[%clk 0:00:23.7]} 31. exd4 {[%clk 0:00:26.5]} 31... e3+ {[%clk
0:00:23.1]} 32. d5 {[%clk 0:00:27]} 32... Bxd5+ {[%clk 0:00:16.8]} 33. Qxd5
{[%clk 0:00:08.2]} 33... Rxd5 {[%clk 0:00:16.6]} 34. Rxd5 {[%clk 0:00:08.2]}
34... Qe4+ {[%clk 0:00:17.2]} 35. f3 {[%clk 0:00:08.4]} 35... Qxd5 {[%clk
0:00:17.6]} 36. Rd1 {[%clk 0:00:08.9]} 36... Qa8 {[%clk 0:00:16]} 37. Kg2 {[%clk
0:00:09.4]} 37... g6 {[%clk 0:00:14.3]} 38. Rd5 {[%clk 0:00:09.1]} 38... Qxd5
{[%clk 0:00:13.7]} 0-1

[Event "Early-Titled-Tuesday-Blitz-March-19-2024"]
[Site "Chess.com"]
[Date "2024.03.19"]
[Round "2"]
[White "Alexchess1984"]
[Black "Levanzovsky"]
[Result "1-0"]
[WhiteElo "2765"]
[BlackElo "2429"]
[TimeControl "180+1"]
[EndTime "8:18:06 PDT"]
[Termination "Alexchess1984 won on time"]

1. e4 {[%clk 0:03:00.9]} 1... c5 {[%clk 0:02:57.9]} 2. c3 {[%clk 0:03:00]} 2...
d5 {[%clk 0:02:57.3]} 3. exd5 {[%clk 0:02:59.2]} 3... Qxd5 {[%clk 0:02:57.4]} 4.
d4 {[%clk 0:02:59.9]} 4... Nf6 {[%clk 0:02:56.8]} 5. Nf3 {[%clk 0:03:00.1]} 5...
Nc6 {[%clk 0:02:54.5]} 6. Be3 {[%clk 0:02:56.6]} 6... cxd4 {[%clk 0:02:50.5]} 7.
cxd4 {[%clk 0:02:56.3]} 7... e6 {[%clk 0:02:36.8]} 8. a3 {[%clk 0:02:53.5]} 8...
Be7 {[%clk 0:02:34.4]} 9. Nc3 {[%clk 0:02:53.2]} 9... Qd6 {[%clk 0:02:34.5]} 10.
Bd3 {[%clk 0:02:53]} 10... O-O {[%clk 0:02:33.8]} 11. Qc2 {[%clk 0:02:41.2]}
11... Rd8 {[%clk 0:02:28.1]} 12. O-O {[%clk 0:02:39]} 12... g6 {[%clk
0:01:58.7]} 13. h3 {[%clk 0:02:36.6]} 13... b6 {[%clk 0:01:57.8]} 14. Rad1
{[%clk 0:02:09.6]} 14... Bb7 {[%clk 0:01:56.9]} 15. Nb5 {[%clk 0:02:06]} 15...
Qd7 {[%clk 0:01:52.8]} 16. Nc3 {[%clk 0:01:47.5]} 16... Rac8 {[%clk 0:01:51.9]}
17. Rfe1 {[%clk 0:01:44]} 17... Nd5 {[%clk 0:01:08.5]} 18. Nxd5 {[%clk
0:01:43.7]} 18... Qxd5 {[%clk 0:01:09.4]} 19. Qe2 {[%clk 0:01:43]} 19... Na5
{[%clk 0:01:01.9]} 20. Rc1 {[%clk 0:01:18.4]} 20... Bf6 {[%clk 0:00:40.6]} 21.
b4 {[%clk 0:01:11.4]} 21... Nb3 {[%clk 0:00:21.2]} 22. Rcd1 {[%clk 0:01:02.6]}
22... Qh5 {[%clk 0:00:17.3]} 23. Bc4 {[%clk 0:00:24.5]} 23... Bxf3 {[%clk
0:00:13.4]} 24. gxf3 {[%clk 0:00:23.9]} 24... Nxd4 {[%clk 0:00:13]} 25. Bxd4
{[%clk 0:00:21.3]} 25... Bxd4 {[%clk 0:00:12.9]} 26. Bxe6 {[%clk 0:00:12.7]}
26... Qg5+ {[%clk 0:00:08.3]} 27. Kh1 {[%clk 0:00:10]} 27... fxe6 {[%clk
0:00:06]} 28. Qxe6+ {[%clk 0:00:09.8]} 28... Kf8 {[%clk 0:00:03.4]} 29. Rxd4
{[%clk 0:00:09.6]} 29... Rxd4 {[%clk 0:00:03.3]} 30. Qxc8+ {[%clk 0:00:09.7]}
30... Rd8 {[%clk 0:00:03.8]} 31. Qe6 {[%clk 0:00:07.8]} 1-0